[Event "Early-Titled-Tuesday-Blitz-May-28-2024"]
[Site "Chess.com"]
[Date "2024.05.28"]
[Round "6"]
[White "eightbyeightchess"]
[Black "linesman39"]
[Result "1-0"]
[WhiteElo "2421"]
[BlackElo "2272"]
[TimeControl "180+1"]
[EndTime "9:06:42 PDT"]
[Termination "eightbyeightchess won by resignation"]

1. e4 {[%clk 0:02:06.5]} 1... c6 {[%clk 0:02:44.3]} 2. d4 {[%clk 0:02:02.3]}
2... d5 {[%clk 0:02:43.6]} 3. Nc3 {[%clk 0:02:01.1]} 3... dxe4 {[%clk 0:02:43]}
4. Nxe4 {[%clk 0:02:02]} 4... Nd7 {[%clk 0:02:42.5]} 5. Nf3 {[%clk 0:02:01.1]}
5... Ngf6 {[%clk 0:02:41.4]} 6. Ng3 {[%clk 0:02:01.4]} 6... e6 {[%clk
0:02:40.1]} 7. Bd3 {[%clk 0:02:01.5]} 7... c5 {[%clk 0:02:39.7]} 8. c3 {[%clk
0:02:01.4]} 8... Qc7 {[%clk 0:02:33.6]} 9. O-O {[%clk 0:02:01.5]} 9... b6 {[%clk
0:02:32]} 10. Re1 {[%clk 0:01:59.7]} 10... Be7 {[%clk 0:02:28.9]} 11. b3 {[%clk
0:01:47.7]} 11... O-O {[%clk 0:02:26.4]} 12. Bb2 {[%clk 0:01:47.8]} 12... Bb7
{[%clk 0:02:24.6]} 13. c4 {[%clk 0:01:47.6]} 13... Rad8 {[%clk 0:02:17.3]} 14.
d5 {[%clk 0:01:47.9]} 14... Bd6 {[%clk 0:01:40.5]} 15. dxe6 {[%clk 0:01:47.2]}
15... fxe6 {[%clk 0:01:39.4]} 16. Rxe6 {[%clk 0:01:48.1]} 16... Ng4 {[%clk
0:01:23.4]} 17. Rxd6 {[%clk 0:01:45.8]} 17... Bxf3 {[%clk 0:01:20.3]} 18. gxf3
{[%clk 0:01:46.6]} 18... Nde5 {[%clk 0:01:14.7]} 19. Rxd8 {[%clk 0:01:34.6]}
19... Rxd8 {[%clk 0:01:13]} 20. fxg4 {[%clk 0:01:33.2]} 20... Rxd3 {[%clk
0:01:09.4]} 21. Qe2 {[%clk 0:01:31]} 21... Nf3+ {[%clk 0:01:06.1]} 22. Kf1
{[%clk 0:01:19.8]} 22... Qd7 {[%clk 0:00:46.4]} 23. h3 {[%clk 0:01:00.8]} 23...
b5 {[%clk 0:00:35]} 24. cxb5 {[%clk 0:00:55.5]} 24... Qxb5 {[%clk 0:00:28.8]}
25. Nf5 {[%clk 0:00:48.3]} 25... Nd2+ {[%clk 0:00:18.9]} 26. Kg1 {[%clk
0:00:41.4]} 26... Nf3+ {[%clk 0:00:17.6]} 27. Kg2 {[%clk 0:00:40.4]} 27... Nd4
{[%clk 0:00:15.1]} 28. Bxd4 {[%clk 0:00:39.5]} 28... cxd4 {[%clk 0:00:13.9]} 29.
Qe6+ {[%clk 0:00:39.2]} 1-0

[Event "Early-Titled-Tuesday-Blitz-May-28-2024"]
[Site "Chess.com"]
[Date "2024.05.28"]
[Round "6"]
[White "SoyuzTM4"]
[Black "elcala"]
[Result "1-0"]
[WhiteElo "2216"]
[BlackElo "2002"]
[TimeControl "180+1"]
[EndTime "9:06:43 PDT"]
[Termination "SoyuzTM4 won by resignation"]

1. e4 {[%clk 0:03:00.9]} 1... e5 {[%clk 0:02:58.8]} 2. Nf3 {[%clk 0:02:59.9]}
2... Nf6 {[%clk 0:02:57.9]} 3. Nxe5 {[%clk 0:02:56.5]} 3... Nxe4 {[%clk
0:02:51.5]} 4. d4 {[%clk 0:02:51.9]} 4... Qe7 {[%clk 0:02:35.4]} 5. Be2 {[%clk
0:02:49.7]} 5... Nc6 {[%clk 0:02:27.3]} 6. Nf3 {[%clk 0:02:43.8]} 6... d5 {[%clk
0:02:22.2]} 7. O-O {[%clk 0:02:43.1]} 7... Bg4 {[%clk 0:02:14.8]} 8. h3 {[%clk
0:02:40.8]} 8... Bxf3 {[%clk 0:02:07.1]} 9. Bxf3 {[%clk 0:02:40.2]} 9... O-O-O
{[%clk 0:02:03.4]} 10. c3 {[%clk 0:02:34.3]} 10... f5 {[%clk 0:01:58.3]} 11. b4
{[%clk 0:02:31.4]} 11... h6 {[%clk 0:01:55.6]} 12. b5 {[%clk 0:02:30.5]} 12...
Nb8 {[%clk 0:01:54.7]} 13. Qa4 {[%clk 0:02:26.9]} 13... a6 {[%clk 0:01:49.2]}
14. bxa6 {[%clk 0:02:23.7]} 14... Nxa6 {[%clk 0:01:48.5]} 15. Be2 {[%clk
0:02:10.4]} 15... Qd6 {[%clk 0:01:25.4]} 16. Bb2 {[%clk 0:01:48.8]} 16... Nb8
{[%clk 0:01:18.3]} 17. Na3 {[%clk 0:01:47.5]} 17... Qc6 {[%clk 0:01:17.8]} 18.
Nb5 {[%clk 0:01:45]} 18... Kd7 {[%clk 0:01:12.7]} 19. c4 {[%clk 0:01:31.1]}
19... dxc4 {[%clk 0:01:07.2]} 20. d5 {[%clk 0:01:30.9]} 20... Qa6 {[%clk
0:01:04.7]} 21. Qxc4 {[%clk 0:01:24.7]} 21... Nd6 {[%clk 0:00:59.8]} 22. Qb3
{[%clk 0:01:15.3]} 22... Qb6 {[%clk 0:00:48.5]} 23. Rac1 {[%clk 0:01:14]} 23...
Nxb5 {[%clk 0:00:46.1]} 24. Bxb5+ {[%clk 0:01:13.3]} 24... Kc8 {[%clk 0:00:45]}
25. Qd3 {[%clk 0:00:56.4]} 25... Nd7 {[%clk 0:00:34.7]} 26. a4 {[%clk
0:00:40.8]} 26... Rg8 {[%clk 0:00:27.2]} 27. Qxf5 {[%clk 0:00:39.3]} 27... Bc5
{[%clk 0:00:20.3]} 28. Qe6 {[%clk 0:00:34.2]} 28... Qxe6 {[%clk 0:00:17.4]} 29.
dxe6 {[%clk 0:00:33.2]} 29... Nb6 {[%clk 0:00:17.2]} 30. Rxc5 {[%clk 0:00:32.9]}
1-0

[Event "Early-Titled-Tuesday-Blitz-May-28-2024"]
[Site "Chess.com"]
[Date "2024.05.28"]
[Round "6"]
[White "Naruto75_3"]
[Black "lefonghua"]
[Result "1-0"]
[WhiteElo "2415"]
[BlackElo "2552"]
[TimeControl "180+1"]
[EndTime "9:06:44 PDT"]
[Termination "Naruto75_3 won by resignation"]

1. d4 {[%clk 0:03:00.9]} 1... Nf6 {[%clk 0:02:59.7]} 2. c4 {[%clk 0:03:00.1]}
2... c5 {[%clk 0:02:57.1]} 3. d5 {[%clk 0:02:58.5]} 3... e6 {[%clk 0:02:57.5]}
4. Nc3 {[%clk 0:02:56.7]} 4... exd5 {[%clk 0:02:57.4]} 5. cxd5 {[%clk
0:02:57.6]} 5... d6 {[%clk 0:02:57.4]} 6. e4 {[%clk 0:02:55.5]} 6... g6 {[%clk
0:02:56.7]} 7. h3 {[%clk 0:02:55.3]} 7... Bg7 {[%clk 0:02:56]} 8. Nf3 {[%clk
0:02:55.3]} 8... a6 {[%clk 0:02:55.4]} 9. a4 {[%clk 0:02:54.6]} 9... Nbd7 {[%clk
0:02:55.6]} 10. Bd3 {[%clk 0:02:54.7]} 10... Nh5 {[%clk 0:02:55.4]} 11. O-O
{[%clk 0:02:54]} 11... Ne5 {[%clk 0:02:54.7]} 12. Nxe5 {[%clk 0:02:53.4]} 12...
Bxe5 {[%clk 0:02:55.6]} 13. Be3 {[%clk 0:02:52.3]} 13... Qh4 {[%clk 0:02:46.5]}
14. Qf3 {[%clk 0:02:39.9]} 14... Nf4 {[%clk 0:02:38.7]} 15. Bxf4 {[%clk
0:02:31.9]} 15... Qxf4 {[%clk 0:02:37.1]} 16. Qxf4 {[%clk 0:02:29.9]} 16... Bxf4
{[%clk 0:02:38]} 17. Rab1 {[%clk 0:02:23.2]} 17... Be5 {[%clk 0:02:35.6]} 18.
Ne2 {[%clk 0:02:21.6]} 18... Bd7 {[%clk 0:02:32.5]} 19. b4 {[%clk 0:02:19.3]}
19... c4 {[%clk 0:02:28.4]} 20. Bxc4 {[%clk 0:02:18.4]} 20... Bxa4 {[%clk
0:02:28.4]} 21. b5 {[%clk 0:02:12.7]} 21... Bc2 {[%clk 0:02:19.1]} 22. Rbc1
{[%clk 0:01:54.5]} 22... Bxe4 {[%clk 0:02:16.1]} 23. bxa6 {[%clk 0:01:53.6]}
23... bxa6 {[%clk 0:02:15.9]} 24. f3 {[%clk 0:01:43]} 24... Bf5 {[%clk
0:02:13.8]} 25. g4 {[%clk 0:01:39.9]} 25... Bd7 {[%clk 0:02:11.6]} 26. f4 {[%clk
0:01:39.9]} 26... Bg7 {[%clk 0:02:10.5]} 27. Ng3 {[%clk 0:01:39.5]} 27... O-O
{[%clk 0:02:07.2]} 28. Ne4 {[%clk 0:01:39.3]} 28... a5 {[%clk 0:01:46.4]} 29.
Nxd6 {[%clk 0:01:37.3]} 29... a4 {[%clk 0:01:46.9]} 30. Ba2 {[%clk 0:01:24.3]}
30... a3 {[%clk 0:01:40.9]} 31. Rc7 {[%clk 0:01:21.4]} 31... Rfd8 {[%clk
0:01:40.7]} 32. Re1 {[%clk 0:01:11.3]} 32... Ra6 {[%clk 0:01:18.4]} 33. Nb7
{[%clk 0:01:06.5]} 33... Re8 {[%clk 0:01:08.8]} 34. Rxe8+ {[%clk 0:01:00.1]}
34... Bxe8 {[%clk 0:01:09.7]} 35. Rc8 {[%clk 0:00:57.9]} 35... Kf8 {[%clk
0:01:10.2]} 36. d6 {[%clk 0:00:56.9]} 36... Bd4+ {[%clk 0:00:50]} 37. Kg2 {[%clk
0:00:50.6]} 37... Kg7 {[%clk 0:00:50.1]} 38. Rxe8 {[%clk 0:00:49.6]} 38... Rb6
{[%clk 0:00:49.4]} 39. d7 {[%clk 0:00:46.7]} 39... Rb2+ {[%clk 0:00:49.5]} 40.
Kf3 {[%clk 0:00:41.6]} 40... Bb6 {[%clk 0:00:48.8]} 41. Re2 {[%clk 0:00:35.8]}
41... Rb5 {[%clk 0:00:47.8]} 42. d8=Q {[%clk 0:00:30.9]} 42... Bxd8 {[%clk
0:00:47.6]} 43. Nxd8 {[%clk 0:00:31.8]} 43... Rb6 {[%clk 0:00:46.9]} 44. Nxf7
{[%clk 0:00:26.5]} 1-0

[Event "Early-Titled-Tuesday-Blitz-May-28-2024"]
[Site "Chess.com"]
[Date "2024.05.28"]
[Round "6"]
[White "ArchibaldCerveza29"]
[Black "aljado"]
[Result "1-0"]
[WhiteElo "2355"]
[BlackElo "2156"]
[TimeControl "180+1"]
[EndTime "9:06:46 PDT"]
[Termination "ArchibaldCerveza29 won by checkmate"]

1. e4 {[%clk 0:02:54.8]} 1... c5 {[%clk 0:02:59.6]} 2. Nf3 {[%clk 0:02:54.2]}
2... e6 {[%clk 0:03:00]} 3. d4 {[%clk 0:02:54.3]} 3... cxd4 {[%clk 0:03:00.5]}
4. Nxd4 {[%clk 0:02:55.2]} 4... Bc5 {[%clk 0:02:59.3]} 5. Be3 {[%clk 0:02:52.4]}
5... Bb6 {[%clk 0:02:57.8]} 6. Nc3 {[%clk 0:02:51.9]} 6... Ne7 {[%clk
0:02:57.7]} 7. Be2 {[%clk 0:02:48.8]} 7... O-O {[%clk 0:02:57.2]} 8. O-O {[%clk
0:02:48.5]} 8... a6 {[%clk 0:02:57.1]} 9. Kh1 {[%clk 0:02:46.1]} 9... Nbc6
{[%clk 0:02:50.5]} 10. Qd2 {[%clk 0:02:43.5]} 10... d5 {[%clk 0:02:41]} 11. Rad1
{[%clk 0:02:30.8]} 11... Ba5 {[%clk 0:02:26.2]} 12. exd5 {[%clk 0:02:26]} 12...
Nxd5 {[%clk 0:02:23.6]} 13. Nxc6 {[%clk 0:02:25.8]} 13... bxc6 {[%clk
0:02:21.2]} 14. Bd4 {[%clk 0:02:23.2]} 14... Qh4 {[%clk 0:02:08.2]} 15. g3
{[%clk 0:02:20.3]} 15... Qh3 {[%clk 0:02:03.2]} 16. Bf3 {[%clk 0:02:18.7]} 16...
Bb7 {[%clk 0:01:56.5]} 17. Qe2 {[%clk 0:02:17.1]} 17... Rad8 {[%clk 0:01:54.9]}
18. Ne4 {[%clk 0:02:11.3]} 18... Bc7 {[%clk 0:01:42.3]} 19. c3 {[%clk
0:01:52.6]} 19... a5 {[%clk 0:01:17.1]} 20. Nc5 {[%clk 0:01:42.5]} 20... Ba8
{[%clk 0:01:14.6]} 21. Rfe1 {[%clk 0:01:27.2]} 21... Bd6 {[%clk 0:01:13.5]} 22.
Ne4 {[%clk 0:01:10.1]} 22... Bc7 {[%clk 0:01:10.1]} 23. c4 {[%clk 0:01:10.1]}
23... Ne7 {[%clk 0:01:04]} 24. Be3 {[%clk 0:01:07.4]} 24... Nf5 {[%clk
0:01:00.7]} 25. Bg4 {[%clk 0:00:59.6]} 25... Rxd1 {[%clk 0:00:19.6]} 26. Rxd1
{[%clk 0:00:56.5]} 26... Nxe3 {[%clk 0:00:15.3]} 27. Bxh3 {[%clk 0:00:55.9]}
27... Nxd1 {[%clk 0:00:14.6]} 28. Qxd1 {[%clk 0:00:54.9]} 28... f5 {[%clk
0:00:13.5]} 29. Nc5 {[%clk 0:00:52.2]} 29... Rd8 {[%clk 0:00:13]} 30. Qe2 {[%clk
0:00:51.4]} 30... Bb6 {[%clk 0:00:10.7]} 31. Qxe6+ {[%clk 0:00:48.3]} 31... Kh8
{[%clk 0:00:10.5]} 32. Qxf5 {[%clk 0:00:40.4]} 32... g6 {[%clk 0:00:05.1]} 33.
Qf6+ {[%clk 0:00:39]} 33... Kg8 {[%clk 0:00:05.5]} 34. Be6# {[%clk 0:00:39.3]}
1-0

[Event "Early-Titled-Tuesday-Blitz-May-28-2024"]
[Site "Chess.com"]
[Date "2024.05.28"]
[Round "6"]
[White "Gumugama"]
[Black "campochess"]
[Result "0-1"]
[WhiteElo "2300"]
[BlackElo "2132"]
[TimeControl "180+1"]
[EndTime "9:06:47 PDT"]
[Termination "campochess won on time"]

1. e4 {[%clk 0:03:00.9]} 1... c5 {[%clk 0:02:54.5]} 2. Nf3 {[%clk 0:02:59.9]}
2... Nc6 {[%clk 0:02:54.5]} 3. d4 {[%clk 0:02:58.9]} 3... cxd4 {[%clk
0:02:54.3]} 4. Nxd4 {[%clk 0:02:59.4]} 4... e5 {[%clk 0:02:53.2]} 5. Nb5 {[%clk
0:02:57.9]} 5... a6 {[%clk 0:02:53.4]} 6. Nd6+ {[%clk 0:02:57.3]} 6... Bxd6
{[%clk 0:02:53.4]} 7. Qxd6 {[%clk 0:02:57.9]} 7... Qe7 {[%clk 0:02:53.5]} 8. Qd1
{[%clk 0:02:57.4]} 8... Nf6 {[%clk 0:02:52.4]} 9. Nc3 {[%clk 0:02:55.8]} 9... d6
{[%clk 0:02:52.4]} 10. Bg5 {[%clk 0:02:54.1]} 10... Be6 {[%clk 0:02:52.2]} 11.
Nd5 {[%clk 0:02:48.5]} 11... Bxd5 {[%clk 0:02:50.9]} 12. exd5 {[%clk 0:02:49.3]}
12... Nb8 {[%clk 0:02:49.7]} 13. Be2 {[%clk 0:02:38.7]} 13... Nbd7 {[%clk
0:02:48.4]} 14. O-O {[%clk 0:02:37.8]} 14... h6 {[%clk 0:02:43.7]} 15. Be3
{[%clk 0:02:33.5]} 15... Rc8 {[%clk 0:02:39]} 16. c4 {[%clk 0:02:33]} 16... O-O
{[%clk 0:02:27.7]} 17. b4 {[%clk 0:02:31.3]} 17... Ne4 {[%clk 0:02:23.2]} 18.
Qd3 {[%clk 0:02:25.6]} 18... f5 {[%clk 0:02:22.7]} 19. f4 {[%clk 0:02:21]} 19...
Nef6 {[%clk 0:02:12.7]} 20. Rac1 {[%clk 0:01:59.2]} 20... e4 {[%clk 0:02:10.9]}
21. Qd4 {[%clk 0:01:55.6]} 21... Kh7 {[%clk 0:02:05.9]} 22. c5 {[%clk
0:01:50.9]} 22... Nb8 {[%clk 0:01:53.6]} 23. a4 {[%clk 0:01:29.1]} 23... Rfd8
{[%clk 0:01:52.9]} 24. c6 {[%clk 0:00:58.2]} 24... bxc6 {[%clk 0:01:50.9]} 25.
dxc6 {[%clk 0:00:54.4]} 25... Nxc6 {[%clk 0:01:48.6]} 26. Qb6 {[%clk 0:00:48.4]}
26... Nd5 {[%clk 0:01:30.1]} 27. Qxa6 {[%clk 0:00:27.8]} 27... Nxe3 {[%clk
0:01:29.7]} 28. Rxc6 {[%clk 0:00:26.9]} 28... Rxc6 {[%clk 0:01:24.7]} 29. Qxc6
{[%clk 0:00:23.3]} 29... Nxf1 {[%clk 0:01:24.4]} 30. Bxf1 {[%clk 0:00:23.7]}
30... Qa7+ {[%clk 0:01:22.1]} 31. Kh1 {[%clk 0:00:21.3]} 31... Qf2 {[%clk
0:01:21.6]} 32. Qc4 {[%clk 0:00:17.6]} 32... Rc8 {[%clk 0:01:21.5]} 33. Qe2
{[%clk 0:00:18]} 33... Qd4 {[%clk 0:01:19.3]} 34. Qb5 {[%clk 0:00:11.3]} 34...
Qf6 {[%clk 0:01:13.9]} 35. a5 {[%clk 0:00:09.1]} 35... Rc1 {[%clk 0:01:13.1]}
36. h3 {[%clk 0:00:08.4]} 36... e3 {[%clk 0:01:10.2]} 37. a6 {[%clk 0:00:07.6]}
37... Qd4 {[%clk 0:01:08.9]} 38. Qxf5+ {[%clk 0:00:03.3]} 38... Kh8 {[%clk
0:01:08.9]} 39. Qf8+ {[%clk 0:00:02.6]} 39... Kh7 {[%clk 0:01:08.9]} 40. Qf5+
{[%clk 0:00:03.2]} 40... Kg8 {[%clk 0:01:09.1]} 41. Qe6+ {[%clk 0:00:02.3]}
41... Kf8 {[%clk 0:01:08.1]} 42. Qf5+ {[%clk 0:00:02.7]} 42... Ke7 {[%clk
0:01:07.7]} 43. Qb5 {[%clk 0:00:01.1]} 43... Qd1 {[%clk 0:01:04.9]} 44. Qb7+
{[%clk 0:00:01.5]} 44... Kf6 {[%clk 0:01:03.9]} 0-1

[Event "Early-Titled-Tuesday-Blitz-May-28-2024"]
[Site "Chess.com"]
[Date "2024.05.28"]
[Round "6"]
[White "Irina_Mikhaylova"]
[Black "GMAneta"]
[Result "1/2-1/2"]
[WhiteElo "2347"]
[BlackElo "2527"]
[TimeControl "180+1"]
[EndTime "9:06:49 PDT"]
[Termination "Game drawn by repetition"]

1. d4 {[%clk 0:03:00.9]} 1... d5 {[%clk 0:02:58]} 2. Nf3 {[%clk 0:03:01.1]} 2...
Nf6 {[%clk 0:02:57]} 3. c4 {[%clk 0:03:01.3]} 3... c6 {[%clk 0:02:56.9]} 4. cxd5
{[%clk 0:03:01.1]} 4... cxd5 {[%clk 0:02:56.7]} 5. Nc3 {[%clk 0:03:01.6]} 5...
Nc6 {[%clk 0:02:54.6]} 6. Bf4 {[%clk 0:03:01.6]} 6... a6 {[%clk 0:02:51.4]} 7.
Rc1 {[%clk 0:03:01.2]} 7... Bf5 {[%clk 0:02:50.7]} 8. e3 {[%clk 0:03:00.7]} 8...
e6 {[%clk 0:02:50.7]} 9. Bd3 {[%clk 0:03:00.9]} 9... Bxd3 {[%clk 0:02:50]} 10.
Qxd3 {[%clk 0:03:01.5]} 10... Bb4 {[%clk 0:02:49]} 11. O-O {[%clk 0:03:01.2]}
11... O-O {[%clk 0:02:48.6]} 12. Na4 {[%clk 0:03:01.5]} 12... Ne4 {[%clk
0:02:48.2]} 13. a3 {[%clk 0:02:59.9]} 13... Be7 {[%clk 0:02:46.3]} 14. b4 {[%clk
0:03:00.1]} 14... Rc8 {[%clk 0:02:44.5]} 15. Nc5 {[%clk 0:02:59.7]} 15... Bxc5
{[%clk 0:02:43.3]} 16. bxc5 {[%clk 0:02:59.8]} 16... Qa5 {[%clk 0:02:39.8]} 17.
Rb1 {[%clk 0:02:46.3]} 17... Nd8 {[%clk 0:02:39.5]} 18. Rb6 {[%clk 0:02:39.6]}
18... Rc6 {[%clk 0:02:38.1]} 19. Rb4 {[%clk 0:02:27.3]} 19... b5 {[%clk
0:02:36]} 20. Ne5 {[%clk 0:02:21]} 20... Rc8 {[%clk 0:02:31.3]} 21. Nd7 {[%clk
0:02:17.7]} 21... Re8 {[%clk 0:02:31.1]} 22. Nb6 {[%clk 0:02:09.1]} 22... Rxc5
{[%clk 0:02:26.1]} 23. dxc5 {[%clk 0:01:55.6]} 23... Nxc5 {[%clk 0:02:25.6]} 24.
Qc3 {[%clk 0:01:48]} 24... Qxb6 {[%clk 0:02:25.1]} 25. Rc1 {[%clk 0:01:43.1]}
25... Ndb7 {[%clk 0:02:18.6]} 26. a4 {[%clk 0:01:34]} 26... Nxa4 {[%clk
0:02:17.2]} 27. Qc7 {[%clk 0:01:33.4]} 27... Qxc7 {[%clk 0:02:16]} 28. Rxc7
{[%clk 0:01:32.1]} 28... Nbc5 {[%clk 0:02:15.2]} 29. Rb1 {[%clk 0:00:55.4]}
29... f6 {[%clk 0:02:10.2]} 30. Bd6 {[%clk 0:00:53.4]} 30... Ne4 {[%clk
0:02:09.5]} 31. Bb4 {[%clk 0:00:47]} 31... Ra8 {[%clk 0:02:08.1]} 32. Ba5 {[%clk
0:00:46.6]} 32... e5 {[%clk 0:01:57.7]} 33. h3 {[%clk 0:00:44.3]} 33... d4
{[%clk 0:01:54.6]} 34. exd4 {[%clk 0:00:43.6]} 34... exd4 {[%clk 0:01:54.6]} 35.
Rd1 {[%clk 0:00:39.6]} 35... Nac3 {[%clk 0:01:53.6]} 36. Bxc3 {[%clk 0:00:32.2]}
36... Nxc3 {[%clk 0:01:51.3]} 37. Rd3 {[%clk 0:00:22.7]} 37... b4 {[%clk
0:01:51.1]} 38. Kf1 {[%clk 0:00:22.5]} 38... Rd8 {[%clk 0:01:47.9]} 39. Rc4
{[%clk 0:00:18.7]} 39... a5 {[%clk 0:01:47.9]} 40. Rcxd4 {[%clk 0:00:18.4]}
40... Rxd4 {[%clk 0:01:47.5]} 41. Rxd4 {[%clk 0:00:19.3]} 41... b3 {[%clk
0:01:46.5]} 42. Rd8+ {[%clk 0:00:17.8]} 42... Kf7 {[%clk 0:01:46.7]} 43. Rb8
{[%clk 0:00:18.7]} 43... a4 {[%clk 0:01:46.3]} 44. Rb4 {[%clk 0:00:18.1]} 44...
Ke6 {[%clk 0:01:36.8]} 45. Ke1 {[%clk 0:00:18.5]} 45... Kd5 {[%clk 0:01:36.9]}
46. Kd2 {[%clk 0:00:18.7]} 46... Ne4+ {[%clk 0:01:36.9]} 47. Kd3 {[%clk
0:00:13.7]} 47... Nxf2+ {[%clk 0:01:36.5]} 48. Ke3 {[%clk 0:00:14.1]} 48... Nd1+
{[%clk 0:01:35.9]} 49. Kd2 {[%clk 0:00:13.5]} 49... Nb2 {[%clk 0:01:26.6]} 50.
Kc3 {[%clk 0:00:13.3]} 50... Nd1+ {[%clk 0:01:26.8]} 51. Kd2 {[%clk 0:00:13.5]}
51... Nb2 {[%clk 0:01:26.7]} 52. Kc3 {[%clk 0:00:13.8]} 52... Nd1+ {[%clk
0:01:26.9]} 53. Kd2 {[%clk 0:00:14.1]} 1/2-1/2

[Event "Early-Titled-Tuesday-Blitz-May-28-2024"]
[Site "Chess.com"]
[Date "2024.05.28"]
[Round "6"]
[White "djano"]
[Black "guineo59"]
[Result "1-0"]
[WhiteElo "2583"]
[BlackElo "2343"]
[TimeControl "180+1"]
[EndTime "9:06:55 PDT"]
[Termination "djano won on time"]

1. e4 {[%clk 0:03:00.9]} 1... e6 {[%clk 0:02:59.6]} 2. b3 {[%clk 0:02:59.8]}
2... d5 {[%clk 0:02:59.7]} 3. Bb2 {[%clk 0:03:00.4]} 3... Nf6 {[%clk 0:02:50.3]}
4. d3 {[%clk 0:03:00]} 4... dxe4 {[%clk 0:02:48.6]} 5. Nd2 {[%clk 0:03:00.1]}
5... Nbd7 {[%clk 0:02:44.9]} 6. Nxe4 {[%clk 0:02:55.3]} 6... Bb4+ {[%clk
0:02:40.6]} 7. c3 {[%clk 0:02:53.4]} 7... Be7 {[%clk 0:02:40.2]} 8. Qf3 {[%clk
0:02:51.1]} 8... O-O {[%clk 0:02:35]} 9. d4 {[%clk 0:02:50.9]} 9... c5 {[%clk
0:02:34.3]} 10. O-O-O {[%clk 0:02:49.3]} 10... cxd4 {[%clk 0:02:25.1]} 11. Rxd4
{[%clk 0:02:49.2]} 11... Qa5 {[%clk 0:02:24.9]} 12. Ra4 {[%clk 0:02:43.6]} 12...
Qb6 {[%clk 0:02:13.6]} 13. Nh3 {[%clk 0:02:22.2]} 13... Ne5 {[%clk 0:02:06]} 14.
Qg3 {[%clk 0:02:12.9]} 14... Ng6 {[%clk 0:01:48.8]} 15. Nhg5 {[%clk 0:02:10.1]}
15... Bd7 {[%clk 0:01:44.8]} 16. Rd4 {[%clk 0:02:08.1]} 16... Bc6 {[%clk
0:01:38.6]} 17. Bc4 {[%clk 0:01:50.7]} 17... Nxe4 {[%clk 0:01:32.7]} 18. Nxe4
{[%clk 0:01:47.4]} 18... Rad8 {[%clk 0:01:16.2]} 19. f3 {[%clk 0:01:41.4]} 19...
Rxd4 {[%clk 0:01:15.3]} 20. cxd4 {[%clk 0:01:41.6]} 20... Rc8 {[%clk 0:00:58.9]}
21. Kb1 {[%clk 0:01:41.6]} 21... Bd5 {[%clk 0:00:58.1]} 22. Bd3 {[%clk
0:01:40.5]} 22... a5 {[%clk 0:00:53.6]} 23. Nc5 {[%clk 0:01:39]} 23... Bxc5
{[%clk 0:00:45.6]} 24. dxc5 {[%clk 0:01:39.4]} 24... Qxc5 {[%clk 0:00:44.9]} 25.
h4 {[%clk 0:01:30.2]} 25... Qf8 {[%clk 0:00:36.1]} 26. h5 {[%clk 0:01:29]} 26...
Ne7 {[%clk 0:00:36.3]} 27. h6 {[%clk 0:01:28.8]} 27... g6 {[%clk 0:00:26.8]} 28.
Qg5 {[%clk 0:01:28.9]} 28... Nc6 {[%clk 0:00:19.3]} 29. a3 {[%clk 0:01:07.7]}
29... e5 {[%clk 0:00:18.3]} 30. Bc2 {[%clk 0:01:06.5]} 30... f6 {[%clk
0:00:17.6]} 31. Qd2 {[%clk 0:01:06]} 31... Qf7 {[%clk 0:00:17.8]} 32. Qc3 {[%clk
0:01:02.4]} 32... Rd8 {[%clk 0:00:17.6]} 33. Rd1 {[%clk 0:00:59.6]} 33... Rd7
{[%clk 0:00:09.9]} 34. Kc1 {[%clk 0:00:57.7]} 34... Be6 {[%clk 0:00:10]} 35. Rd2
{[%clk 0:00:56]} 35... Rxd2 {[%clk 0:00:09.8]} 36. Qxd2 {[%clk 0:00:56.9]} 36...
Qd7 {[%clk 0:00:10.2]} 37. Qe3 {[%clk 0:00:53.8]} 37... Nd4 {[%clk 0:00:09.1]}
38. Bd1 {[%clk 0:00:54.4]} 38... Qd5 {[%clk 0:00:06.3]} 39. f4 {[%clk
0:00:53.4]} 39... b5 {[%clk 0:00:03.3]} 40. fxe5 {[%clk 0:00:53.2]} 40... fxe5
{[%clk 0:00:04.2]} 41. Qc3 {[%clk 0:00:52.2]} 1-0

[Event "Early-Titled-Tuesday-Blitz-May-28-2024"]
[Site "Chess.com"]
[Date "2024.05.28"]
[Round "6"]
[White "stepanosinovsky"]
[Black "zurzan"]
[Result "0-1"]
[WhiteElo "2348"]
[BlackElo "2150"]
[TimeControl "180+1"]
[EndTime "9:06:55 PDT"]
[Termination "zurzan won on time"]

1. e3 {[%clk 0:01:47.1]} 1... c5 {[%clk 0:02:59.3]} 2. g3 {[%clk 0:01:46.1]}
2... g6 {[%clk 0:02:57.9]} 3. Bg2 {[%clk 0:01:47]} 3... Bg7 {[%clk 0:02:58]} 4.
h4 {[%clk 0:01:46.6]} 4... d5 {[%clk 0:02:55.1]} 5. h5 {[%clk 0:01:46.4]} 5...
Nc6 {[%clk 0:02:50.1]} 6. c4 {[%clk 0:01:43.9]} 6... e6 {[%clk 0:02:48.5]} 7.
cxd5 {[%clk 0:01:37.7]} 7... exd5 {[%clk 0:02:47.9]} 8. Nc3 {[%clk 0:01:38.3]}
8... Nge7 {[%clk 0:02:46.1]} 9. Nge2 {[%clk 0:01:25.1]} 9... Bg4 {[%clk
0:02:42.3]} 10. Qa4 {[%clk 0:01:19.8]} 10... Bxe2 {[%clk 0:02:30.5]} 11. Nxe2
{[%clk 0:01:17.3]} 11... Qd6 {[%clk 0:02:05.1]} 12. Rb1 {[%clk 0:00:45.6]} 12...
a6 {[%clk 0:02:02.6]} 13. a3 {[%clk 0:00:38.8]} 13... O-O {[%clk 0:01:30.5]} 14.
hxg6 {[%clk 0:00:33.5]} 14... Nxg6 {[%clk 0:01:30.3]} 15. Nf4 {[%clk 0:00:23.3]}
15... b5 {[%clk 0:01:25]} 16. Qd1 {[%clk 0:00:22.4]} 16... Nxf4 {[%clk
0:01:21.7]} 17. gxf4 {[%clk 0:00:23.3]} 17... Qg6 {[%clk 0:01:18.8]} 18. Bxd5
{[%clk 0:00:16.4]} 18... Qxb1 {[%clk 0:01:16.8]} 19. Bxc6 {[%clk 0:00:16.3]}
19... Rad8 {[%clk 0:01:13.5]} 20. Ke2 {[%clk 0:00:10.3]} 20... Qa2 {[%clk
0:01:00.8]} 21. Kf3 {[%clk 0:00:07.8]} 21... Qe6 {[%clk 0:00:59.5]} 22. Be4
{[%clk 0:00:06.5]} 22... f5 {[%clk 0:00:56.4]} 23. Bb1 {[%clk 0:00:05.8]} 23...
Rf6 {[%clk 0:00:53.3]} 24. b4 {[%clk 0:00:04.9]} 24... c4 {[%clk 0:00:53.2]} 25.
d4 {[%clk 0:00:05]} 25... Rg6 {[%clk 0:00:50.5]} 26. Ke2 {[%clk 0:00:02.2]}
26... Qd5 {[%clk 0:00:48.4]} 27. Rh5 {[%clk 0:00:01.6]} 27... Rf8 {[%clk
0:00:46]} 28. Qc2 {[%clk 0:00:01.3]} 28... Qg2 {[%clk 0:00:29.2]} 0-1